Cogmind - Beta 9.1 @@@ ROGUE MODE // 2019.11.12 @ 01:14:41 Player: Trione Result: Destroyed by G-34 Mercenary with Small Laser Performance ------------- Evolutions (0) 0 Regions Visited (2) 400 Robots Destroyed (32) 160 Value Destroyed (819) 819 Prototype IDs (0) 0 Alien Tech Used (0) 0 Bonus (0) 0 TOTAL SCORE: 1379 Bonus ------- None Cogmind --------- Core Integrity 0/250 Matter 300/300 Energy 112/265 System Corruption 0% Temperature Cool (6) Location -10/Mines Parts ------- Power (1) Improved Ion Engine Propulsion (2) Light Treads Light Treads Utility (2) Large Storage Unit Large Storage Unit Weapon (2) Mining Claw Inventory (16) Ion Engine Light Treads Wheel Wheel Improved Heat Sink Experimental Sensor Array Light Armor Plating Light Armor Plating EM Pulse Gun Small Laser Particle Gun Light Assault Rifle Light Assault Rifle Light Cannon Peak State ------------ Power Improved Ion Engine Propulsion Light Treads Light Treads Utility Large Storage Unit Large Storage Unit Weapon Assault Rifle Light Cannon Inventory Ion Engine Improved Ion Engine Wheel Wheel Improved Heat Sink Experimental Sensor Array Light Armor Plating Light Armor Plating EM Pulse Gun Small Laser Particle Gun Light Assault Rifle Light Assault Rifle Mining Claw [Rating: 10] Favorites ----------- Power Improved Ion Engine Engine Improved Ion Engine Propulsion Light Treads Treads Light Treads Wheel Compact Wheel Utility Large Storage Unit Storage Large Storage Unit Weapon Assault Rifle Energy Gun EM Pulse Gun Ballistic Gun Assault Rifle Ballistic Cannon Light Cannon Slashing Weapon Mining Claw Build | -11 -10 -10 ------- Run | Scr Mat Min Slots Evolved . | . . . Power . | . . . Propulsion . | . . . Utility . | . . . Weapon . | . . . Parts Attached 38 | 6 11 21 Power 7 | 1 2 4 Engine 7 | 1 2 4 Core . | . . . Reactor . | . . . Propulsion 10 | 2 3 5 Treads 7 | . 2 5 Leg . | . . . Wheel 3 | 2 1 . Hover . | . . . Flight . | . . . Utility 4 | 1 3 . Device . | . . . Storage 4 | 1 3 . Processor . | . . . Hackware . | . . . Protection . | . . . Artifact . | . . . Weapon 17 | 2 3 12 Energy Gun 3 | . . 3 Energy Cannon . | . . . Ballistic Gun 8 | 2 3 3 Ballistic Cannon 3 | . . 3 Launcher . | . . . Special Weapon . | . . . Impact Weapon . | . . . Slashing Weapon 3 | . . 3 Piercing Weapon . | . . . Special Melee Weapon . | . . . Unidentified Prototypes . | . . . Parts Lost 13 | . 4 9 Power 5 | . 2 3 Propulsion 4 | . 1 3 Utility . | . . . Weapon 4 | . 1 3 Highest Loss Streak 6 | . 1 6 Average Slot Usage (%) 97 | . 96 99 Engine 13 | . 13 13 Treads 13 | . . 24 Wheel 13 | . 27 3 Storage 26 | . 25 28 Ballistic Gun 21 | . 27 16 Ballistic Cannon 4 | . . 8 Slashing Weapon 1 | . . 2 Naked Turns . | . . . Heaviest Build 44 | 9 41 44 Greatest Support 40 | 32 32 40 Greatest Overweight (x) 2 | . 2 1 Average Overweight (x) . | . . . Largest Inventory Capacity 16 | 6 16 16 Average Capacity 14 | 5 13 16 Most Carried 16 | 6 16 16 Average Carried 12 | 2 9 15 Final Capacity 16 | 6 16 16 Final Carried 16 | 6 16 14 Class Distribution -------------------- 100% | Mutant Dominant Class ---------------- Mutant | -10/Materials Mutant | -10/Mines Resources | -11 -10 -10 ----------- Run | Scr Mat Min Matter Collected 1019 | 232 301 486 Remotely . | . . . Salvage Created 960 | . 456 504 Parts 64 | . 32 32 Haulers Intercepted 1 | . 1 . Recyclers Shooed 1 | . 1 . Parts Field Recycled . | . . . Retrieved Matter . | . . . Parts Self-Destructed . | . . . Prevented . | . . . Kills | -11 -10 -10 ------- Run | Scr Mat Min Combat Hostiles Destroyed 28 | . 11 17 Melee 3 | . . 3 Guns 20 | . 11 9 Cannons 5 | . . 5 Classes Destroyed 8 | . 5 3 Builder 1 | . 1 . Tunneler 1 | . . 1 Hauler 1 | . 1 . Watcher 1 | . 1 . Swarmer 9 | . 3 6 Grunt 16 | . 8 8 Sentry 2 | . . 2 Assembled 1 | . . 1 Best Kill Streak 6 | . 6 5 Combat Bots Only 5 | . 3 5 Max Kills in Single Turn 1 | . 1 1 Gunslinging . | . . . Exploded . | . . . Melee 1 | . . 1 Uniques/NPCs Destroyed . | . . . Combat | -11 -10 -10 -------- Run | Scr Mat Min Damage Taken 1605 | . 498 1107 Core 253 | . 72 181 Absorbed by Shields . | . . . Core Remaining (%) 100 | 100 . . Volleys Fired 101 | . 50 51 Largest 2 | . 2 2 Hottest 55 | . 40 55 Shots Fired 201 | . 99 102 Gun 178 | . 99 79 Cannon 23 | . . 23 Launcher . | . . . Special . | . . . Kinetic 201 | . 99 102 Thermal . | . . . Explosive . | . . . Electromagnetic . | . . . Robot Hit Streak 20 | . 9 20 Robot Miss Streak 5 | . 5 3 Penetration Max . | . . . Secondary Targets 1 | . 1 . Max Gunslinging Chain 1 | . 1 . Shots Hit Robots 141 | . 60 81 Core Hits 56 | . 31 25 Critical Hits 1 | . . 1 Critical Kills . | . . . Critical Parts Destroyed 1 | . . 1 Melee Attacks 28 | . . 28 Impact . | . . . Slashing 28 | . . 28 Piercing . | . . . Sneak Attacks 1 | . . 1 Combat Hostiles . | . . . Follow-up Attacks . | . . . Damage Inflicted 1780 | . 638 1142 Guns 1268 | . 638 630 Cannons 301 | . . 301 Explosions . | . . . Melee 211 | . . 211 Ramming . | . . . Kinetic 1569 | . 638 931 Thermal . | . . . Explosive . | . . . Electromagnetic . | . . . Impact . | . . . Slashing 211 | . . 211 Piercing . | . . . Highest Corruption . | . . . Average Corruption . | . . . Corruption Purged . | . . . Overload Shots . | . . . Overflow Damage . | . . . Projectiles . | . . . Explosions . | . . . Melee . | . . . Knockbacks 2 | . . 2 Impact . | . . . Kinetic 2 | . . 2 Secondary . | . . . Self-Inflicted Damage . | . . . Shots . | . . . Rammed . | . . . Targets Rammed . | . . . Kicked . | . . . Crushed . | . . . Highest Temperature 29 | . 18 29 Average Temperature 8 | . 5 9 Received Heat Transfer 660 | . 234 426 Siege Activations . | . . . Robots Corrupted . | . . . Combat Hostiles . | . . . Parts Fried . | . . . Impact Corruptions . | . . . Robots Melted . | . . . Combat Hostiles . | . . . Parts Melted . | . . . Heat Transferred . | . . . Parts Sabotaged . | . . . Parts Stolen . | . . . Parts Stripped . | . . . Power Chain Reactions . | . . . Missiles Intercepted . | . . . Alert | -11 -10 -10 ------- Run | Scr Mat Min Peak Influence 205 | . 205 128 Average Influence 57 | . 75 46 Maximum Alert Level 1 | . 1 . Low Security (%) 97 | . . . Level 1 2 | . . . Level 2 . | . . . Level 3 . | . . . Level 4 . | . . . Level 5 . | . . . High Security . | . . . Max Security . | . . . Squads Dispatched . | . . . Investigation . | . . . Extermination . | . . . Reinforcement . | . . . Assault . | . . . Garrison . | . . . Intercept . | . . . Construction Impeded . | . . . Haulers Reinforced . | . . . Stealth | -11 -10 -10 --------- Run | Scr Mat Min Distress Signals 2 | . 2 . Communications Jammed . | . . . Distress Signals . | . . . Times Spotted 40 | . 20 20 Peak Tracking Total 6 | . 5 6 Tactical Retreats 2 | . 1 1 Traps | -11 -10 -10 ------- Run | Scr Mat Min Traps Triggered . | . . . Indirectly . | . . . Trap Hack Attempts . | . . . Triggered . | . . . Disarmed . | . . . Reprogrammed . | . . . Reused . | . . . Traps Extracted . | . . . Installed 1 | . . 1 Triggered . | . . . Machines | -11 -10 -10 ---------- Run | Scr Mat Min Machines Disabled . | . . . Max in Single Turn . | . . . Machines Sabotaged . | . . . Garrisons Compromised . | . . . Overloaded Fab Kills . | . . . Fab Network Shutdowns . | . . . Hacking | -11 -10 -10 --------- Run | Scr Mat Min Machines Accessed 8 | . 8 . Terminals 6 | . 6 . Fabricators . | . . . Repair Stations . | . . . Recycling Units 2 | . 2 . Scanalyzers . | . . . Garrison Access . | . . . Total Hacks 22 | . 22 . Successful 12 | . 12 . Failed 10 | . 10 . Catastrophic . | . . . Database Lockouts . | . . . Manual 15 | . 15 . Terminals 19 | . 19 . Fabricators . | . . . Repair Stations . | . . . Recycling Units 3 | . 3 . Scanalyzers . | . . . Garrison Access . | . . . Terminal Hacks 5 | . 5 . Robot Analysis 1 | . 1 . Hauler Manifests 1 | . 1 . Zone Layout 3 | . 3 . Fabricator Hacks . | . . . Repair Station Hacks . | . . . Recycling Unit Hacks 2 | . 2 . Retrieve Components 2 | . 2 . Scanalyzer . | . . . Garrison Access Hacks . | . . . Unauthorized Hacks 13 | . 13 . Terminals 5 | . 5 . Track 5 | . 5 . Fabricators . | . . . Repair Stations . | . . . Recycling Units . | . . . Scanalyzers . | . . . Garrison Access . | . . . Data Cores Recovered . | . . . Used . | . . . Hacking Detections 5 | . 5 . Full Trace Events 1 | . 1 . Feedback Events . | . . . Feedback Blocked . | . . . Robot Schematics Acquired . | . . . Robots Built . | . . . Matter . | . . . Time . | . . . Total Robot Build Rating . | . . . Part Schematics Acquired . | . . . Parts Built . | . . . Matter . | . . . Time . | . . . Total Part Build Rating . | . . . Parts Repaired . | . . . Time . | . . . Parts Recycled . | . . . Recycled Matter . | . . . Retrieved Matter . | . . . Retrieved Components 1 | . 1 . Parts Scanalyzed . | . . . Part Schematics Acquired . | . . . Parts Damaged . | . . . Bothacking | -11 -10 -10 ------------ Run | Scr Mat Min Used RIF Installer . | . . . Robots Hacked . | . . . Non-combat . | . . . Combat . | . . . Robot Hacks Applied . | . . . Relay Couplers Released . | . . . Robots Rewired . | . . . Allies Hacked . | . . . Hacks Repelled . | . . . Allies | -11 -10 -10 -------- Run | Scr Mat Min Total Allies 1 | . . 1 Largest Group 1 | . . 1 Highest-Rated Group 31 | . . 31 Highest-Rated Ally 31 | . . 31 Total Orders . | . . . Ally Attacks 1 | . . 1 Total Damage 21 | . . 21 Kills 1 | . . 1 Allies Corrupted 1 | . . 1 Allies Melted . | . . . Intel | -11 -10 -10 ------- Run | Scr Mat Min Robot Analysis Total 1 | . 1 . Derelict Logs Recovered 2 | . . 2 Drone Launches . | . . . Drone Recoveries . | . . . Exploration | -11 -10 -10 ------------- Run | Scr Mat Min Turns Passed 2197 | 60 926 1211 Spaces Moved 1275 | 45 687 543 Core 3 | 3 . . Treads 467 | . . 467 Legs . | . . . Wheels 805 | 42 687 76 Hover . | . . . Flight . | . . . Fastest Speed 50 | 50 100 100 Average Speed 131 | 96 104 168 Slowest Speed 180 | 100 120 180 Overloaded Moves . | . . . Propulsion Burnouts . | . . . Robots Hopped . | . . . Cave-ins Triggered . | . . . Exploration Rate (%) 58 | 4 95 75 Regions Visited 2 Branch Regions 1 Pre-discovered Areas 2 | . . 2 Known Exits Taken . | . . . Unknown Exits Taken 2 | 1 1 . Scrap Searched 2 | . . 2 Spaces Dug 2 | . . 2 Terrain Destroyed 2 | . . 2 Melee 2 | . . 2 Projectile . | . . . AOE . | . . . Actions | -11 -10 -10 --------- Run | Scr Mat Min Total 1545 | 58 809 678 Wait 72 | 2 41 29 Move 1273 | 44 686 543 Hop . | . . . Pick Up 24 | 6 15 3 Fast Attach 10 | 6 3 1 Attach 10 | . 3 7 Detach 1 | . 1 . Swap 18 | . 5 13 Drop 7 | . 5 2 Fire 101 | . 50 51 Melee 28 | . . 28 Ram . | . . . Kick . | . . . Crush . | . . . Escape Stasis . | . . . Rewire . | . . . Trap 1 | . . 1 Miscellaneous . | . . . Route ------- -11/Scrapyard -10/Materials (discovered 4 exits: [*Mat x3] / [*Min]) -10/Mines (discovered 2 exits: [*Mat x2]) History --------- Turn | Location | Event 32 | -11/Scrapyard | Discovered new exit (range 15) 61 | -11/Scrapyard | Entered Materials 295 | -10/Materials | Discovered new exit (range 17) 301 | -10/Materials | Build established: Mutant 404 | -10/Materials | Discovered new exit (range 16) 628 | -10/Materials | Discovered new exit (range 18) 825 | -10/Materials | Discovered new exit (range 16) 987 | -10/Materials | Entered Mines 1027 | -10/Mines | Learned Materials garrison access intel 1030 | -10/Mines | Found a hidden stash of uninstalled traps 1073 | -10/Mines | Found a damaged Exp. Sensor Array with a note attached 1078 | -10/Mines | Found Prototype Device 1173 | -10/Mines | Core integrity fell below 50% 1200 | -10/Mines | Lost 6 parts (2p2n2w) 1422 | -10/Mines | Discovered new exit (range 8) 1424 | -10/Mines | Discovered new exit (range 14) 1474 | -10/Mines | Learned location of Storage (-8) 1742 | -10/Mines | Escorted by a lone wolf Derelict 1994 | -10/Mines | Excavation squad dispatched 1994 | -10/Mines | A large section of the Mines collapsed 2017 | -10/Mines | Core integrity fell below 20% 2198 | -10/Mines | Destroyed by G-34 Mercenary with Small Laser Last Messages --------------- 02024_ Acquired 16 matter. 02035_ Dropped Assault Rifle. 02077_ Acquired 30 matter. 02079_ Acquired 10 matter. 02129_ as-08382 destroyed. 02132_ Acquired 16 matter. 02155_ G-34 Mercenary destroyed. 02158_ Ion Engine severed. 02163_ T-07 Excavator is excavating. 02167_ Aluminum Leg ripped off. 02168_ T-07 Excavator is excavating. 02170_ G-34 Mercenary destroyed. 02176_ Acquired 19 matter. 02179_ Lgt. Treads destroyed. 02183_ Acquired 10 matter. 02195_ Imp. Ion Engine destroyed. 02196_ Acquired 4 matter. 02196_ G-34 Mercenary destroyed. 02196_ Lgt. Assault Rifle destroyed. 02197_ Acquired 1 matter. Map ----- +----------------------------------------------------+ | ?????????????????????????????????????????? | | ?????????????????????????????????????????? | | ?????????????????????????????????????????? | | ?????????????????????????????????????????? | | ?????????????????????????????????????????? | | ?????????????????????????????????????????? | | ?????????????????????????????????????????? | | ?????????????????????????????????????????? | | ?????????????????????????????????????????? | | ?????????????????????????????????????????? | | ?????????????????????????????????????????? | | ?????????????????????????????????????????? | | ?????????????????????????????????????????? | | ?????????????????????????????????????????? | | ?????????????????????????????????????????? | | ?????????????????????????????????????????? | | ???????????????????????????????????????### | | ???????????????????????????????????????# | | ?????###?#####????????????????????????? | | ?????# #????????????????????????? | | ?????# """ ?????????????????????????# | | ?????# """ #?????????????????????????# | | ?????# """ #?????????????????????????? | | ?????# #?????##??????????????????? | | ?????# """ ######=#???????????????????? | | ?????# """== g=@[#????????????????????? | | ?????# """[##=##*#????????????########## | | ?????# ## ##%#????????????# | | ?????########## ##???????????# ######## | | ????????????## #???????????# #??????# | | ????????????# #???????##### #??????# | | ???????????## """ ##???????# #??????# | | ?????????### """ ##????????# ############ | | ?????????# """ #?????????# ## | | ?????????# #?????????#*## | | ?????????# #### #?????????# ## """ """ " | | ?????????## #% ##?????????# ## """ """ " | | ??????????### ####??????????# ## """ """ " | | ???????????# ##?????????????# ## """ """ " | | ???????????## ####??????????# ## | | ???????????# ## ##?????????# ## """ """ " | | ??????????### # ########### ## """ """ " | | ??????????# "# ## """ """ " | | ?????????# # ############### """ """ " | | ?????????# ####?????????????# | | ?????????## ##????????????????# | | ??????????####?????????????????########### | | ?????????????????????????????????????????? | | | | | +----------------------------------------------------+ Best States ------------- Heat Dissipation 25 Energy Generation 12 Energy Capacity 265 Matter Stores 300 Matter Capacity 300 Sight Range 16 Terrain Scan Density 10 Evasion (%) 40 Recoil Reduction 2 Item Schematics ----------------- None Robot Schematics ------------------ None Fabricated ------------ Nothing Alien Tech Used ----------------- None Achievements -------------- None Challenges ------------ None Game ------ Seed RefineryChipWand Manual? 0 Play Time 00:19:48 Cumulative 818.5 hours Start 2019.11.12 @ 00:50:47 End 2019.11.12 @ 01:14:41 Sessions 1 Manual Loads 0 Difficulty Rogue Special Mode None Game No. 322 Rogue 322 Adventurer 0 Explorer 0 Win Type - Total 21 Types 11/1/7/0/0/0/2 Lore% 95 Gallery% 95 Achievement% 79 Wizard Run 0 Options --------- ASCII 0 Keyboard 1 Movement Vi Keybinds 0 Fullscreen 0 Font 12/Crisp Map View 76x50 Tactical HUD 1 Map Filters NONE Filters NONE Steam 1 RUN: 1adda961-e0e1-46be-913a-5ec32a242b0a